bitfinex-derivatives/quotes_BTCF0:USTF0_20250129
["timestamp","ask_amount","ask_price","bid_price","bid_amount"]
[1738116320385,0.49800542,102190.0,102180.0,0.003]
[1738116320582,0.4989368,102190.0,102180.0,0.003]
[1738116320777,0.36094442,102190.0,102170.0,0.13708]
[1738116320978,0.3608,102180.0,102170.0,0.13708]
[1738116321178,0.00014442,102190.0,102180.0,0.137074]
[1738116321481,0.00014442,102190.0,102180.0,0.27506638]
[1738116322477,0.36094442,102190.0,102180.0,0.27506638]
[1738116323888,0.3608,102200.0,102180.0,0.27506638]
[1738116324185,0.3608,102190.0,102160.0,0.67180901]
[1738116324389,0.3608,102180.0,102160.0,0.35474673]
[1738116324591,0.3608,102180.0,102160.0,0.31100901]
[1738116325276,0.3608,102170.0,102160.0,0.31100901]
[1738116325478,0.3608,102180.0,102160.0,0.31100901]
[1738116325788,0.3608,102180.0,102160.0,0.31400901]
[1738116326174,0.3608,102180.0,102160.0,0.17601663]
[1738116326388,0.3608,102180.0,102160.0,0.31400901]
[1738116326978,0.497864,102190.0,102160.0,0.67480901]
[1738116327177,0.497864,102190.0,102160.0,0.53681663]
[1738116328191,0.497864,102190.0,102160.0,0.67480901]
[1738116328494,0.497864,102190.0,102170.0,0.13799238]
[1738116328680,0.497864,102190.0,102160.0,0.67480901]
[1738116329294,0.497864,102190.0,102170.0,0.49879238]
[1738116329588,0.29216788,102190.0,102170.0,0.49879238]
[1738116329793,0.42923188,102190.0,102170.0,0.3608]
[1738116330381,0.43016026,102190.0,102170.0,0.3608]
[1738116330578,0.137088,102170.0,102160.0,0.03591963]
[1738116330789,0.497878,102180.0,102160.0,0.03591963]
[1738116330994,0.137078,102180.0,102160.0,0.03591963]
[1738116331398,0.137088,102170.0,102160.0,0.02608497]
[1738116331591,0.63588038,102170.0,102160.0,0.02900497]
[1738116332390,0.497888,102170.0,102160.0,0.02900497]
[1738116332697,0.35096659,102170.0,102160.0,0.02900497]
[1738116332896,0.48805459,102170.0,102160.0,0.02900497]
[1738116334190,0.497888,102170.0,102160.0,0.02900497]
[1738116334405,0.0301,102180.0,102170.0,0.137088]
[1738116334693,0.527974,102180.0,102170.0,0.137088]
[1738116335092,0.137088,102170.0,102160.0,0.02900497]
[1738116335290,0.497888,102170.0,102160.0,0.02900497]
[1738116335491,0.497888,102170.0,102160.0,0.04428783]
[1738116337099,0.497888,102170.0,102160.0,0.04431276]
[1738116337397,0.497888,102170.0,102160.0,0.01822779]
[1738116337699,0.063619,102160.0,102140.0,0.1469671]
[1738116337898,0.424419,102160.0,102140.0,0.137127]
[1738116338093,0.424419,102160.0,102140.0,0.497927]
[1738116338687,0.424419,102160.0,102140.0,0.50397385]
[1738116340297,0.063619,102160.0,102140.0,0.64496623]
[1738116340495,0.424419,102160.0,102140.0,0.64496623]
[1738116340693,0.424419,102160.0,102140.0,0.50697385]
[1738116340897,0.063619,102160.0,102140.0,0.50697385]
[1738116341101,0.167489,102170.0,102150.0,0.497902]
[1738116341405,0.16732385,102180.0,102160.0,0.63589338]
[1738116341797,0.52812385,102180.0,102160.0,0.497901]
[1738116342398,0.52812385,102180.0,102160.0,0.63589338]
[1738116342609,0.52812385,102180.0,102160.0,0.53965487]
[1738116343194,0.137088,102170.0,102160.0,0.17885487]
[1738116343392,0.497888,102170.0,102160.0,0.17885487]
[1738116344702,0.49802985,102180.0,102160.0,0.67764725]
[1738116344917,0.13722985,102180.0,102170.0,0.137088]
[1738116345302,0.13722985,102180.0,102170.0,0.17884187]
[1738116346409,0.13722985,102180.0,102170.0,0.137088]
[1738116347613,0.13722985,102180.0,102170.0,0.17891288]
[1738116348211,0.13722985,102180.0,102170.0,0.137088]
[1738116349630,0.13722985,102180.0,102170.0,0.14668122]
[1738116351421,0.13722985,102180.0,102160.0,0.49804385]
[1738116351722,0.45298492,102180.0,102160.0,0.53994886]
[1738116352022,0.497888,102170.0,102160.0,0.17914886]
[1738116352718,0.58992607,102170.0,102160.0,0.00014685]
[1738116352923,0.62232607,102170.0,102160.0,0.00014685]
[1738116354615,0.530288,102170.0,102160.0,0.00014685]
[1738116356728,0.169488,102170.0,102160.0,0.00014685]
[1738116356915,0.169488,102170.0,102160.0,0.00578685]
[1738116357115,0.169488,102170.0,102160.0,0.14288785]
[1738116357325,0.169488,102170.0,102160.0,0.00578685]
[1738116357822,0.530288,102170.0,102160.0,0.00578685]
[1738116358522,0.51455576,102180.0,102170.0,0.137088]
[1738116358523,0.14393484,102180.0,102170.0,0.137088]
[1738116358725,0.14393484,102180.0,102170.0,0.27520498]
[1738116358912,0.14393484,102180.0,102170.0,0.497888]
[1738116359511,0.14393484,102180.0,102170.0,0.63600498]
[1738116360825,0.14393484,102180.0,102170.0,0.67724584]
[1738116361322,0.14653115,102200.0,102170.0,0.54015784]
[1738116361525,0.04970785,102200.0,102190.0,0.99677798]
[1738116361719,0.16223426,102210.0,102200.0,0.137047]
[1738116361922,1e-08,102210.0,102200.0,0.77408096]
[1738116362121,1e-08,102210.0,102200.0,0.81527789]
[1738116362819,1e-08,102210.0,102200.0,0.81628789]
[1738116363221,1e-08,102210.0,102200.0,0.77509096]
[1738116363421,1e-08,102210.0,102200.0,0.63697398]
[1738116363624,1e-08,102210.0,102200.0,0.498857]
[1738116363827,1e-08,102210.0,102200.0,0.63697398]
[1738116364532,1e-08,102210.0,102200.0,0.498857]
[1738116364922,1e-08,102210.0,102200.0,0.50862643]
[1738116365123,1e-08,102210.0,102200.0,0.64674341]
[1738116366328,0.00026295,102220.0,102200.0,0.64674341]
[1738116366532,0.00026295,102220.0,102200.0,0.50969641]
[1738116366727,0.00026295,102220.0,102210.0,0.137034]
[1738116367634,0.13728395,102220.0,102210.0,0.137034]
[1738116369434,0.00026295,102220.0,102210.0,0.63595098]
[1738116369931,0.00026295,102220.0,102210.0,0.64295098]
[1738116371026,0.00026295,102220.0,102210.0,0.64857098]
[1738116371229,0.00026295,102220.0,102210.0,0.510454]
[1738116376038,0.00026295,102220.0,102210.0,0.65001098]
[1738116378343,0.00026295,102220.0,102210.0,0.511894]
[1738116379630,0.13728395,102220.0,102210.0,0.151094]
[1738116379835,0.13728395,102220.0,102210.0,0.144094]
[1738116380537,0.13728395,102220.0,102210.0,0.23604963]
[1738116382639,0.00026295,102220.0,102210.0,0.59684963]
[1738116385245,0.00026295,102220.0,102210.0,0.144094]
[1738116385437,0.00026295,102220.0,102210.0,0.59684963]
[1738116386643,0.13728395,102220.0,102210.0,0.59684963]
[1738116386844,0.00026295,102220.0,102210.0,0.59684963]
[1738116388630,0.00026295,102220.0,102210.0,0.68880526]
[1738116388837,0.00026295,102220.0,102210.0,0.59684963]
[1738116389741,0.00957518,102260.0,102230.0,0.137007]
[1738116389943,0.23446596,102290.0,102280.0,0.13694]
[1738116390141,1e-06,102300.0,102290.0,0.136927]
[1738116390343,1e-06,102320.0,102290.0,0.3608]
[1738116390643,0.37398217,102350.0,102340.0,0.13686]
[1738116390835,0.37398217,102350.0,102340.0,0.45275563]
[1738116391036,0.35998217,102350.0,102340.0,0.58961563]
[1738116391359,0.35998217,102350.0,102340.0,0.45275563]
[1738116391850,0.35998217,102350.0,102340.0,0.45479563]
[1738116392145,0.041,102370.0,102340.0,0.45479563]
[1738116392340,0.041,102370.0,102350.0,0.45275563]
[1738116392542,0.041,102370.0,102350.0,0.3608]
[1738116392746,0.23679391,102360.0,102340.0,0.50039626]
[1738116393045,0.09995791,102360.0,102340.0,0.36284]
[1738116393345,0.136847,102350.0,102340.0,0.36284]
[1738116393551,0.136847,102350.0,102340.0,0.00204]
[1738116393846,0.13686,102340.0,102330.0,0.00014685]
[1738116394036,0.49766,102340.0,102330.0,0.00014685]
[1738116394446,0.63521626,102340.0,102330.0,0.00014685]
[1738116394640,0.136887,102320.0,102310.0,0.3608]
[1738116394839,0.79835626,102340.0,102300.0,0.36237794]
[1738116394840,0.1369,102310.0,102300.0,0.36237794]
[1738116395042,0.1369,102310.0,102300.0,0.36257794]
[1738116395246,0.27445626,102310.0,102300.0,0.0016661]
[1738116395452,0.1369,102310.0,102300.0,0.3624661]
[1738116395947,0.00014685,102320.0,102300.0,0.63693036]
[1738116396147,0.13703385,102320.0,102310.0,0.3608]
[1738116396455,0.08303385,102320.0,102310.0,0.3608]
[1738116397352,0.49835626,102340.0,102310.0,0.4977]
[1738116397553,0.49835626,102340.0,102310.0,0.3608]
[1738116397554,0.13755626,102340.0,102310.0,0.3608]
[1738116397751,0.136886,102330.0,102320.0,0.3608]
[1738116397959,0.136887,102320.0,102310.0,0.36094685]
[1738116399248,0.49835626,102330.0,102310.0,0.36094685]
[1738116399449,0.27443426,102330.0,102310.0,0.49784685]
[1738116402653,0.136887,102320.0,102310.0,0.49784685]
[1738116403345,0.42982595,102330.0,102310.0,0.49784685]
[1738116403551,0.06902595,102330.0,102310.0,0.49784685]
[1738116404150,0.27444326,102320.0,102310.0,0.00014685]
[1738116404859,0.09837103,102320.0,102310.0,0.00014685]
[1738116406664,0.49835626,102330.0,102310.0,0.00014685]
[1738116407163,0.136887,102320.0,102310.0,0.00014685]
[1738116408464,0.136887,102320.0,102310.0,0.13704685]
[1738116408856,0.48850691,102330.0,102310.0,0.49784685]
[1738116409559,0.136887,102320.0,102310.0,0.49784685]
[1738116411161,0.27444326,102320.0,102310.0,0.36094685]
[1738116411464,0.66614326,102320.0,102310.0,0.00014685]
[1738116412755,0.30534326,102320.0,102310.0,0.00014685]
[1738116413759,0.66614326,102320.0,102310.0,0.00014685]
[1738116415672,0.1369,102310.0,102300.0,0.0058]
[1738116415858,0.30615626,102310.0,102300.0,0.0058]
[1738116416063,0.66695626,102310.0,102300.0,0.0058]
[1738116416264,0.30615626,102310.0,102300.0,0.0058]
[1738116416779,0.66695626,102310.0,102300.0,0.0058]
[1738116418872,0.30615626,102310.0,102300.0,0.0058]
[1738116419266,0.1369,102310.0,102300.0,0.3666]
[1738116419472,0.1369,102310.0,102300.0,0.503513]
[1738116419866,0.1369,102310.0,102300.0,0.0058]
[1738116420470,0.27445626,102310.0,102300.0,0.0058]
[1738116421979,0.63525626,102310.0,102300.0,0.0058]
[1738116422182,0.27445626,102310.0,102300.0,0.0058]
[1738116422377,0.1369,102310.0,102300.0,0.142713]
[1738116422576,0.1369,102310.0,102300.0,0.503513]
[1738116422972,0.1369,102310.0,102300.0,0.3666]
[1738116423183,0.1369,102310.0,102300.0,0.0058]
[1738116423774,0.27445626,102310.0,102300.0,0.0058]
[1738116424177,0.1369,102310.0,102300.0,0.0058]
[1738116424774,0.63525626,102310.0,102300.0,0.0058]
[1738116424979,0.63525626,102310.0,102300.0,0.9368883]
[1738116425584,0.72477626,102310.0,102300.0,0.9368883]
[1738116427393,0.72477626,102310.0,102300.0,0.72107478]
[1738116427589,0.136913,102300.0,102290.0,0.34698816]
[1738116427780,0.63526926,102300.0,102290.0,0.34698816]
[1738116428091,0.63526926,102300.0,102290.0,0.23232571]
[1738116428477,0.63526926,102300.0,102290.0,0.23388571]
[1738116430592,0.5895714,102300.0,102290.0,0.23388571]
[1738116431583,0.5895714,102300.0,102290.0,0.00170685]
[1738116431797,0.6780914,102300.0,102290.0,0.00170685]
[1738116431989,0.6780514,102300.0,102290.0,0.00170685]
[1738116432495,0.7699098,102300.0,102290.0,0.00170685]
[1738116432789,0.136967,102260.0,102250.0,0.00146678]
[1738116432984,0.13698,102250.0,102240.0,0.34684131]
[1738116433188,0.2288384,102250.0,102240.0,0.34684131]
[1738116433489,0.6198384,102250.0,102240.0,0.34684131]
[1738116433685,0.6527384,102250.0,102240.0,0.34684131]
[1738116433878,0.6527384,102250.0,102240.0,0.34702131]
[1738116434688,0.69881576,102250.0,102240.0,0.34702131]
[1738116435594,0.69881576,102250.0,102240.0,0.00018]
[1738116436983,0.136994,102240.0,102230.0,0.00014685]
[1738116437180,0.66682976,102240.0,102230.0,0.00014685]
[1738116438194,0.66682976,102240.0,102230.0,0.00029685]
[1738116442589,0.80476552,102240.0,102230.0,0.00029685]
[1738116442898,0.137034,102210.0,102200.0,0.10915555]
[1738116443094,0.27496976,102210.0,102200.0,0.10915555]
[1738116443305,0.27496976,102210.0,102200.0,0.46995555]
[1738116444193,0.27496976,102210.0,102200.0,0.47017555]
[1738116444793,0.27496976,102210.0,102200.0,0.46248751]
[1738116445097,0.27496976,102210.0,102200.0,0.10168751]
[1738116445297,0.63576976,102210.0,102200.0,0.10168751]
[1738116445893,0.27496976,102210.0,102200.0,0.10168751]
[1738116446501,0.63576976,102210.0,102200.0,0.10168751]
[1738116447502,0.27496976,102210.0,102200.0,0.10168751]
[1738116449906,0.27496976,102210.0,102200.0,0.10022]
[1738116452396,0.63576976,102210.0,102200.0,0.10022]
[1738116452712,0.27496976,102210.0,102200.0,0.10022]
[1738116453206,0.63576976,102210.0,102200.0,0.10022]
[1738116454707,0.58984729,102210.0,102200.0,0.10022]
[1738116454911,0.68186058,102210.0,102200.0,0.10022]
[1738116456614,0.137047,102200.0,102190.0,0.00014685]
[1738116456803,0.58986029,102200.0,102190.0,0.00014685]
[1738116457611,0.68054029,102200.0,102190.0,0.00014685]
[1738116457816,0.68054029,102200.0,102190.0,0.00063685]
[1738116458405,0.137088,102170.0,102160.0,0.67162054]
[1738116458616,0.22910129,102170.0,102160.0,0.17372154]
[1738116459223,0.58990129,102170.0,102160.0,0.17372154]
[1738116461616,0.68191458,102170.0,102160.0,0.17372154]
[1738116461830,0.137101,102160.0,102150.0,0.29736217]
[1738116462026,0.76722758,102160.0,102150.0,0.23866049]
[1738116462330,0.137114,102150.0,102140.0,0.77294519]
[1738116462508,0.68194058,102150.0,102140.0,0.77294519]
[1738116462714,0.72414058,102150.0,102140.0,0.77294519]
[1738116463220,1.58702658,102150.0,102120.0,0.34684131]
[1738116463424,0.68196758,102130.0,102120.0,0.34684131]
[1738116463622,0.58995429,102130.0,102120.0,0.34698816]
[1738116463817,1.08606758,102130.0,102120.0,0.34698816]
[1738116464022,0.99405429,102130.0,102120.0,0.34698816]
[1738116464223,1.08606758,102130.0,102120.0,0.34698816]
[1738116464721,1.12576758,102130.0,102120.0,0.34698816]
[1738116464926,0.98862658,102130.0,102110.0,0.41309097]
[1738116465231,0.72198158,102120.0,102110.0,0.41309097]
[1738116466725,0.72198158,102120.0,102110.0,0.28429097]
[1738116467325,0.137168,102110.0,102100.0,0.1000979]
[1738116467629,0.58998129,102110.0,102100.0,0.1000979]
[1738116468028,1.28998129,102110.0,102100.0,0.1000979]
[1738116468220,0.22917129,102120.0,102100.0,0.2372659]
[1738116468416,0.58997129,102120.0,102100.0,0.2372659]
[1738116468627,0.22917129,102120.0,102100.0,0.2372659]
[1738116468827,0.58997129,102120.0,102100.0,0.2372659]
[1738116469023,0.09201329,102110.0,102100.0,0.2372659]
[1738116469229,0.09201329,102110.0,102100.0,0.5980659]
[1738116469427,0.09201329,102110.0,102100.0,0.1000979]
[1738116469629,0.58998129,102110.0,102100.0,0.1000979]
[1738116472135,0.58984399,102110.0,102100.0,0.1000979]
[1738116474537,0.63054399,102110.0,102100.0,0.1000979]
[1738116475233,0.72698399,102110.0,102100.0,0.1000979]
[1738116475824,0.137208,102080.0,102070.0,0.1252]
[1738116476133,0.95082129,102080.0,102070.0,0.0819]
[1738116476332,0.95082129,102080.0,102070.0,0.0416]
[1738116477434,0.137225,102070.0,102050.0,0.54699492]
[1738116477643,0.45281329,102080.0,102060.0,0.3608]
[1738116478031,0.137222,102070.0,102060.0,0.3608]
[1738116478230,0.137222,102070.0,102050.0,0.58789192]
[1738116478435,0.45281329,102070.0,102050.0,0.4426]
[1738116478629,0.59004829,102060.0,102050.0,0.0818]
[1738116478940,0.137249,102050.0,102040.0,0.0431]
[1738116479145,0.59006229,102050.0,102040.0,0.0431]
[1738116480331,0.498049,102050.0,102040.0,0.0431]
[1738116480840,0.498038,102060.0,102040.0,0.63317529]
[1738116481033,0.3608,102050.0,102040.0,0.27237529]
[1738116481544,0.498038,102060.0,102040.0,0.541162]
[1738116481743,0.498038,102060.0,102040.0,0.63317529]
[1738116482833,0.137238,102060.0,102040.0,0.63317529]
[1738116483034,0.59385185,102070.0,102050.0,0.22926229]
[1738116483237,0.59385185,102070.0,102060.0,0.0795]
[1738116483540,0.00014685,102070.0,102060.0,0.66954829]
[1738116484837,0.497998,102090.0,102070.0,0.137221]
[1738116485139,0.497998,102090.0,102080.0,0.0418]
[1738116485748,0.59001129,102090.0,102080.0,0.0418]
[1738116486945,0.137198,102090.0,102080.0,0.0418]
[1738116487343,0.92934914,102100.0,102080.0,0.179006]
[1738116487548,1.29014914,102100.0,102080.0,0.179006]
[1738116487752,0.137195,102090.0,102080.0,0.179006]
[1738116488945,0.137195,102090.0,102080.0,0.0418]
[1738116490543,1.15296014,102100.0,102090.0,0.137195]
[1738116490544,0.70014685,102100.0,102090.0,0.137195]
[1738116490753,0.59014214,102100.0,102090.0,0.0417]
[1738116491050,0.137195,102090.0,102080.0,0.0418]
[1738116492249,0.00014685,102100.0,102080.0,0.49461329]
[1738116492451,0.00014685,102100.0,102090.0,0.63340829]
[1738116492950,0.00014685,102100.0,102090.0,0.72542158]
[1738116493361,0.00146993,102110.0,102090.0,0.58822658]
[1738116493545,0.00146993,102110.0,102100.0,0.58999529]
[1738116494055,0.20368669,102120.0,102110.0,0.137168]
[1738116494251,0.20368669,102120.0,102110.0,0.63198129]
[1738116496556,0.20368669,102120.0,102110.0,0.67198129]
[1738116497055,0.20368669,102120.0,102110.0,0.579968]
[1738116497454,0.34084169,102120.0,102110.0,0.579968]
[1738116497756,0.34084169,102120.0,102110.0,0.58770738]
[1738116497957,0.137155,102120.0,102110.0,0.58770738]
[1738116498255,0.29584683,102130.0,102110.0,0.58770738]
[1738116498256,0.34097854,102130.0,102120.0,0.137155]
[1738116498445,0.34097854,102130.0,102120.0,0.497955]
[1738116498853,0.34097854,102130.0,102120.0,0.540355]
[1738116501647,0.20383354,102130.0,102120.0,0.540355]
[1738116503055,0.00014685,102130.0,102120.0,0.540355]
[1738116503555,0.00014685,102130.0,102120.0,0.179555]
[1738116504157,0.13728785,102130.0,102120.0,0.179555]
[1738116507055,0.00014685,102130.0,102120.0,0.179555]
[1738116508050,0.13728785,102130.0,102120.0,0.179555]
[1738116508758,0.13728785,102130.0,102120.0,0.137155]
[1738116514068,0.22470717,102130.0,102120.0,0.137155]
[1738116514667,0.31672046,102130.0,102110.0,0.45053938]
[1738116514970,0.67752046,102130.0,102110.0,0.54570538]
[1738116515265,0.71792046,102130.0,102110.0,0.54570538]
[1738116516478,0.22916829,102120.0,102110.0,0.00773938]
[1738116516766,0.22916829,102120.0,102100.0,0.53962585]
[1738116516968,0.09201329,102110.0,102100.0,0.53962585]
[1738116517163,0.27616829,102120.0,102100.0,0.53962585]
[1738116517371,0.22918129,102110.0,102100.0,0.00014685]
[1738116518154,0.22918129,102110.0,102100.0,0.00851056]
[1738116518354,0.22918129,102110.0,102100.0,0.00014685]
[1738116518970,0.58998129,102110.0,102100.0,0.00014685]
[1738116521668,0.22918129,102110.0,102100.0,0.00014685]
[1738116522058,0.58998129,102110.0,102100.0,0.00014685]
[1738116522263,0.22918129,102110.0,102100.0,0.00014685]
[1738116522463,0.58998129,102110.0,102100.0,0.00014685]
[1738116522668,0.76549733,102110.0,102100.0,0.00014685]
[1738116522863,0.40469733,102110.0,102100.0,0.00014685]
[1738116523159,0.31268404,102110.0,102100.0,0.00014685]
[1738116524762,0.40469733,102110.0,102100.0,0.00014685]
[1738116525765,0.31268404,102110.0,102100.0,0.36094685]
[1738116525967,0.31268404,102110.0,102100.0,0.49812785]
[1738116526167,0.31268404,102110.0,102100.0,0.54112785]
[1738116526573,0.45923225,102110.0,102100.0,0.18032785]
[1738116526970,0.45923225,102110.0,102100.0,0.04314685]
[1738116529875,0.55124554,102110.0,102100.0,0.04314685]
[1738116530071,0.34638869,102110.0,102100.0,0.04314685]
[1738116531873,0.34638869,102110.0,102100.0,0.00014685]
[1738116532079,0.70718869,102110.0,102100.0,0.00014685]
[1738116532281,1.40718869,102110.0,102100.0,0.00014685]
[1738116533972,1.46549733,102110.0,102100.0,0.00014685]
[1738116535178,0.137208,102080.0,102070.0,0.4519]
[1738116535372,0.137208,102080.0,102070.0,0.46034007]
[1738116538669,0.34231986,102080.0,102070.0,0.46034007]
[1738116539677,0.34231986,102080.0,102070.0,0.09954007]
[1738116539986,0.137222,102070.0,102060.0,0.54044744]
[1738116540187,0.22923529,102070.0,102060.0,0.40321644]
[1738116540389,0.22923529,102070.0,102060.0,0.04241644]
[1738116540585,0.137222,102070.0,102060.0,0.04241644]
[1738116540884,0.34232186,102080.0,102060.0,0.63245473]
[1738116541096,0.34232186,102080.0,102070.0,0.3608]
[1738116542390,0.34232186,102080.0,102070.0,0.498022]
[1738116542796,0.40092525,102080.0,102070.0,0.498022]
[1738116543699,0.26371525,102080.0,102070.0,0.59003529]
[1738116544289,0.17566289,102090.0,102080.0,0.137208]
[1738116544496,0.17566289,102090.0,102080.0,0.68652129]
[1738116546294,0.08803839,102090.0,102080.0,0.68652129]
[1738116547492,0.08803839,102090.0,102080.0,0.594508]
[1738116548603,0.22523339,102090.0,102080.0,0.594508]
[1738116549904,0.13734185,102090.0,102080.0,0.594508]
[1738116550304,0.13734185,102090.0,102080.0,0.60261957]
[1738116551901,0.00014685,102090.0,102080.0,0.60261957]
[1738116552101,0.00014685,102090.0,102080.0,0.69463286]
[1738116553602,0.08803839,102090.0,102080.0,0.69463286]
[1738116554194,0.08803839,102090.0,102080.0,0.60261957]
[1738116554710,0.08803839,102090.0,102080.0,0.69463286]
[1738116557509,0.00014685,102090.0,102080.0,0.69463286]
[1738116560306,0.08789154,102100.0,102090.0,0.22920829]
[1738116560508,0.08789154,102100.0,102090.0,0.64020829]
[1738116560812,0.17990483,102100.0,102080.0,0.60261657]
[1738116561112,0.17990483,102100.0,102080.0,0.55431957]
[1738116561113,0.22920829,102090.0,102080.0,0.55431957]
[1738116561307,0.186395,102090.0,102080.0,0.41725842]
[1738116561514,0.186395,102090.0,102080.0,0.50626642]
[1738116563012,0.27840829,102090.0,102080.0,0.00825842]
[1738116563213,0.63920829,102090.0,102080.0,0.00825842]
[1738116563412,0.68720829,102090.0,102080.0,0.00825842]
[1738116565207,0.595195,102090.0,102080.0,0.00825842]
[1738116571813,0.234395,102090.0,102080.0,0.00825842]
[1738116573716,0.0972,102090.0,102080.0,0.50626642]
[1738116573911,0.0972,102090.0,102080.0,0.59827971]
[1738116574106,0.0492,102090.0,102080.0,0.59827971]
[1738116574519,0.0492,102090.0,102080.0,0.50626642]
[1738116575117,0.31284689,102100.0,102080.0,0.46107171]
[1738116575420,0.17566289,102100.0,102090.0,0.497995]
[1738116575621,0.17566289,102100.0,102090.0,0.137195]
[1738116576016,0.00014685,102100.0,102090.0,0.497995]
[1738116576220,0.00014685,102100.0,102090.0,0.137195]
[1738116576521,0.13732785,102100.0,102090.0,0.497995]
[1738116577328,0.13732785,102100.0,102090.0,0.137195]
[1738116578217,0.22934114,102100.0,102090.0,0.137195]
[1738116579024,0.28398256,102100.0,102090.0,0.137195]
[1738116581122,0.28398256,102100.0,102090.0,0.497995]
[1738116581919,0.14680156,102100.0,102090.0,0.497995]
[1738116583429,0.14680156,102100.0,102090.0,0.59000829]
[1738116583723,0.14680156,102100.0,102090.0,0.69460829]
[1738116585824,0.28398256,102100.0,102090.0,0.602595]
[1738116586129,0.22533434,102100.0,102090.0,0.602595]
[1738116588128,0.08815334,102100.0,102090.0,0.602595]
[1738116588723,0.22533434,102100.0,102090.0,0.602595]
[1738116589621,0.13732785,102100.0,102090.0,0.602595]
[1738116590830,0.13732785,102100.0,102090.0,0.497995]
[1738116592832,0.28398256,102100.0,102090.0,0.497995]
[1738116594032,0.14680156,102100.0,102090.0,0.497995]
[1738116594623,0.28398256,102100.0,102090.0,0.497995]
[1738116595935,0.13732785,102100.0,102090.0,0.497995]
[1738116597435,0.00014685,102100.0,102090.0,0.497995]
[1738116597735,0.00014685,102100.0,102090.0,0.59000829]
[1738116598236,0.00014685,102100.0,102090.0,0.64240829]
[1738116599532,0.13732785,102100.0,102090.0,0.550395]
[1738116599835,0.13732785,102100.0,102090.0,0.497995]
[1738116601534,0.13732785,102100.0,102090.0,0.3608]
[1738116601741,0.137195,102090.0,102080.0,0.32018194]
[1738116602040,0.137195,102090.0,102080.0,0.68098194]
[1738116604442,0.13733185,102100.0,102090.0,0.137195]
[1738116604643,0.13733185,102100.0,102090.0,0.59000829]
[1738116605526,0.13733185,102100.0,102090.0,0.64440829]
[1738116605725,0.13733185,102100.0,102090.0,0.497995]
[1738116605931,0.137195,102090.0,102080.0,0.68097994]
[1738116607030,0.34281464,102090.0,102080.0,0.68097994]
[1738116610841,0.34281464,102090.0,102080.0,0.77299323]
[1738116611344,0.25469194,102090.0,102080.0,0.77299323]
[1738116611643,0.11749694,102090.0,102080.0,0.77299323]
[1738116614643,0.2642985,102100.0,102090.0,0.137195]
[1738116614830,0.2642985,102100.0,102090.0,0.59000829]
[1738116617644,0.4014795,102100.0,102090.0,0.497995]
[1738116617949,0.49349279,102100.0,102090.0,0.497995]
[1738116618340,0.4014795,102100.0,102090.0,0.497995]
[1738116622351,0.45996822,102100.0,102090.0,0.497995]
[1738116625055,0.32278722,102100.0,102090.0,0.59000829]
[1738116626662,0.14680156,102100.0,102090.0,0.59000829]
[1738116630760,0.17598566,102110.0,102100.0,0.137181]
[1738116630957,0.17598566,102110.0,102100.0,0.69849429]
[1738116631263,0.32285084,102110.0,102100.0,0.75339429]
[1738116634059,0.2053166,102130.0,102100.0,0.70822658]
[1738116634276,0.2053166,102130.0,102120.0,1.04278158]
[1738116634459,0.2053166,102130.0,102120.0,0.95076829]
[1738116634967,0.137141,102130.0,102120.0,0.858755]
[1738116635162,0.193241,102130.0,102120.0,0.858755]
[1738116639668,0.31042037,102130.0,102120.0,0.858755]
[1738116640869,0.31042037,102130.0,102120.0,0.497955]
[1738116641069,0.31042037,102130.0,102120.0,0.137155]
[1738116641270,0.31042037,102130.0,102120.0,0.497955]
[1738116641776,0.67122037,102130.0,102120.0,0.00922074]
[1738116641964,0.137155,102120.0,102110.0,0.00014685]
[1738116642166,0.28476829,102120.0,102110.0,0.00014685]
[1738116642557,0.64556829,102120.0,102110.0,0.00014685]
[1738116643469,0.553555,102120.0,102110.0,0.00014685]
[1738116646265,0.56241368,102120.0,102110.0,0.00014685]
[1738116646467,0.65442697,102120.0,102110.0,0.00014685]
[1738116646858,0.77160634,102120.0,102110.0,0.00014685]
[1738116650076,0.65442697,102120.0,102110.0,0.00014685]
[1738116652173,0.51727197,102120.0,102100.0,0.36001685]
[1738116652464,0.137168,102110.0,102100.0,0.36001685]
[1738116652869,0.137168,102110.0,102090.0,0.59893962]
[1738116653068,0.137168,102110.0,102100.0,0.3608]
[1738116653577,0.137168,102110.0,102090.0,0.59908647]
[1738116654278,0.137168,102110.0,102100.0,0.3608]
[1738116654771,0.137168,102110.0,102100.0,0.137182]
[1738116655770,0.137168,102110.0,102100.0,0.497982]
[1738116656374,0.137168,102110.0,102100.0,0.137182]
[1738116657472,0.137168,102110.0,102100.0,0.497982]
[1738116657782,0.25437889,102110.0,102100.0,0.497982]
[1738116658074,0.25437889,102110.0,102100.0,0.3608]
[1738116658274,0.137181,102100.0,102090.0,0.50707418]
[1738116660179,0.25438289,102110.0,102090.0,0.59908747]
[1738116661579,0.137181,102100.0,102090.0,0.50707418]
[1738116664676,0.22919429,102100.0,102090.0,0.36988118]
[1738116666482,0.58999429,102100.0,102090.0,0.00014685]
[1738116666783,0.69859429,102100.0,102090.0,0.00014685]
[1738116667982,0.81580518,102100.0,102090.0,0.00014685]
[1738116671587,0.96237549,102100.0,102090.0,0.00014685]
[1738116671989,0.97138566,102100.0,102090.0,0.00014685]
[1738116675092,0.61058566,102100.0,102090.0,0.00014685]
[1738116675391,0.2637812,102100.0,102090.0,0.45296014]
[1738116675592,0.17581633,102100.0,102090.0,0.69715514]
[1738116675794,0.17581633,102100.0,102090.0,0.78916843]
[1738116675984,0.2053166,102110.0,102100.0,0.137181]
[1738116676186,0.2053166,102110.0,102100.0,0.58999429]
[1738116679080,0.2053166,102110.0,102100.0,0.64419429]
[1738116679291,0.14682736,102120.0,102100.0,0.50701329]
[1738116679488,0.14682736,102120.0,102110.0,0.58998129]
[1738116679691,0.14682736,102120.0,102110.0,0.497968]
[1738116682085,0.14682736,102120.0,102110.0,0.58998129]
[1738116682582,1e-08,102120.0,102110.0,0.88998129]
[1738116683298,0.5785504,102150.0,102110.0,0.45281329]
[1738116683299,0.23059954,102150.0,102110.0,0.45281329]
[1738116683488,0.23059954,102150.0,102130.0,0.3608]
[1738116683694,0.00014685,102140.0,102130.0,0.3608]
[1738116683894,0.00014685,102140.0,102130.0,0.49808785]
[1738116684785,0.13727485,102140.0,102130.0,0.49808785]
[1738116687402,0.22928814,102140.0,102130.0,0.49808785]
[1738116688102,0.92928814,102140.0,102130.0,0.49808785]
[1738116688299,1.29008814,102140.0,102130.0,0.00014685]
[1738116690302,0.92928814,102140.0,102130.0,0.00014685]
[1738116690502,0.22928814,102140.0,102130.0,0.00014685]
[1738116691097,0.59008814,102140.0,102130.0,0.00014685]